[Event "Fagernes GM Open Autumn 2024"]
[Site "Fagernes"]
[Date "2024.10.07"]
[Round "2.11"]
[White "Kanyamarala, Tarun"]
[Black "Sasikiran, Krishnan"]
[Result "0-1"]
[ECO "E51"]
[WhiteElo "2369"]
[BlackElo "2571"]
[Annotator "TA"]
[PlyCount "78"]
[EventDate "2024.10.03"]
[EventType "swiss"]
[EventCountry "NOR"]
[SourceTitle "playchess.com"]
[Source "ChessBase"]
[SourceQuality "1"]
[TimeControl "40/6000:2400+30"]

{[%evp 13,78,7,6,7,2,-9,-2,-13,11,0,0,3,0,0,0,0,0,0,0,0,0,0,5,7,3,6,12,0,0,0,0,-11,15,-42,-34,-70,-81,-418,-416,-420,-414,-432,-416,-489,-479,-490,-488,-508,-506,-702,-429,-560,-554,-560,-572,-577,-560,-888,-887,-878,-878,-877,-876,-861,-812,-667,-656]} 1. d4 {[%emt 0:00:14]} Nf6 {[%emt 0:00:00]} 2. c4 {[%emt 0:00:00]} e6 {[%emt 0:00:00]} 3. Nc3 {[%emt 0:00:00]} Bb4 {[%emt 0:00:00]} 4. e3 {[%emt 0:00:00]} O-O {[%emt 0:00:00]} 5. Bd2 {[%emt 0:00:23]} d5 {[%emt 0:00:00]} 6. Nf3 {[%emt 0:00:00]} b6 {[%emt 0:00:00]} 7. cxd5 {[%emt 0:00:00]} exd5 {[%emt 0:00:00]} 8. Bd3 {[%emt 0:00:00]} Bd6 {[%emt 0:00:00]} 9. O-O {[%emt 0:02:58]} Re8 {[%emt 0:09:52]} 10. Qc2 {[%emt 0:03:30] Die Stellung ist ausgeglichen.} Ba6 {[%emt 0:11:30]} 11. Bxa6 {[%emt 0:01:44]} Nxa6 {[%emt 0:00:00]} 12. Nb5 {[%emt 0:01:54]} Bf8 {[%emt 0:08:56]} 13. Rac1 {[%emt 0:03:44]} c5 {[%emt 0:02:37]} 14. Qa4 {[%emt 0:06:50]} Nc7 {[%emt 0:05:15]} 15. Nxc7 {[%emt 0:12:07]} Qxc7 {[%emt 0:00:00]} 16. dxc5 {[%emt 0:02:31]} bxc5 {[%emt 0:00:00]} 17. Bc3 {[%emt 0:01:12]} Ne4 {[%emt 0:05:13]} 18. Rfd1 {[%emt 0:05:03]} Qb7 {[%emt 0:02:37]} 19. Nd2 {[%emt 0:01:43]} Ng5 {[%emt 0:10:35]} 20. Qg4 {[%emt 0:08:40]} Ne6 {[%emt 0:04:23]} 21. Nf3 {[%emt 0:04:06]} Rad8 {[%emt 0:10:26]} 22. b3 {[%emt 0:05:07]} Rd6 {[%emt 0:05:34]} 23. Qh5 {[%emt 0:04:31] [#]} (23. Be5 $11 Rb6 24. Qf5) 23... d4 $1 {[%emt 0:02:54] Droht ...Rd5 und aus.} 24. Bd2 {[%emt 0:00:22]} (24. exd4 $2 {zu gefräßig.} Nf4 25. Qg4 Ne2+ 26. Kh1 Nxc1 27. Rxc1 cxd4 $19 (27... Re4 $2 28. Qf5 $19)) (24. Ba1 Red8) 24... Red8 {[%emt 0:02:50]} 25. exd4 $2 {[%emt 0:04:19][%mdl 8192] [#] Davon erholt Weiß sich nicht mehr.} (25. Re1 $17) 25... g6 $1 $19 {[%emt 0:02:53]} 26. Qe5 {[%emt 0:02:24]} Nxd4 {[%emt 0:02:47]} 27. Nxd4 {[%emt 0:08:37]} Rxd4 {[%emt 0:00:08]} 28. Qe3 {[%emt 0:00:49]} Rd3 {[%emt 0:02:52] Schwarz steht klar auf Gewinn.} 29. Qe2 {[%emt 0:03:11]} Qd5 {[%emt 0:01:31][%cal Rd3d2]} 30. Rc2 {[%emt 0:00:00] [#]} Bh6 $1 {[%emt 0:02:11][%mdl 512]} 31. f4 {[%emt 0:00:00] [#]} (31. Kf1 Bxd2) 31... c4 $1 {[%emt 0:02:04][%mdl 512]} 32. bxc4 {[%emt 0:00:00]} (32. Rxc4 Rxd2) 32... Qd4+ {[%emt 0:00:00]} 33. Qf2 {[%emt 0:00:40] [#]} Bxf4 $1 {[%emt 0:00:00][%mdl 512]} 34. Qxd4 {[%emt 0:00:00]} R8xd4 {[%emt 0:00:00]} ({Nicht} 34... R3xd4 35. Bxf4 Rxd1+ 36. Kf2 $19) 35. Kf2 {[%emt 0:00:35]} Rxd2+ {[%emt 0:00:00]} 36. Rdxd2 {[%emt 0:00:00]} Rxd2+ {[%emt 0:00:00]} 37. Rxd2 {[%emt 0:00:00]} Bxd2 {[%emt 0:00:00]} 38. Ke2 {[%emt 0:00:00]} Bb4 {[%emt 0:00:00]} 39. Kd3 {[%emt 0:00:00]} Kf8 {[%emt 0:00:00] Gewichteter Fehlerwert: Weiß=0.53/Schwarz=0.16 (sehr präzise) .  Verlustzug:     	Weiß=1     	---        Fehler:       	Weiß=1     	---        Ungenau:       	Weiß=4     	Schwarz=2     OK:         	Weiß=12    	Schwarz=13    Bester:       	Weiß=1     	---        Stark:        	---       	Schwarz=1     Brilliant:      	---       	Schwarz=1} 0-1

[Event "Fagernes GM Open Autumn 2024"]
[Site "Fagernes"]
[Date "2024.10.07"]
[Round "2.12"]
[White "Namitbir Singh Walia"]
[Black "Stremavicius, Titas"]
[Result "0-1"]
[ECO "B13"]
[WhiteElo "2351"]
[BlackElo "2541"]
[Annotator "TA"]
[PlyCount "96"]
[EventDate "2024.10.03"]
[EventType "swiss"]
[EventCountry "NOR"]
[SourceTitle "playchess.com"]
[Source "ChessBase"]
[SourceQuality "1"]
[TimeControl "40/6000:2400+30"]

{[%evp 13,96,18,23,21,23,24,23,22,27,41,40,7,12,-8,0,-7,-14,-25,-7,-25,-33,-30,-29,-27,-35,-34,-18,-20,-25,-21,-19,-21,-5,-26,-22,-16,-12,-37,0,0,0,0,0,-10,-18,-16,-18,-13,-11,-16,-8,-43,-45,-39,-54,-81,-81,-81,-74,-321,-261,-323,-354,-337,-286,-552,-326,-1558,-1239,-29980,-29981,-29981,-29982,-29981,-29981,-29979,-29951,-29962,-9792,-29986,-29987,-29987,-29988,-29988,-29986]} 1. e4 {[%emt 0:00:00]} c6 {[%emt 0:01:14]} 2. d4 {[%emt 0:00:00]} d5 {[%emt 0:00:00]} 3. exd5 {[%emt 0:00:00]} cxd5 {[%emt 0:00:00]} 4. Bd3 {[%emt 0:00:00]} Nc6 {[%emt 0:00:00]} 5. c3 {[%emt 0:00:00]} Qc7 {[%emt 0:00:00]} 6. h3 {[%emt 0:00:00]} Nf6 {[%emt 0:00:00][%cal Bg8f6,Bf6h5,Bh5f4,Bf4e6][%mdl 32]} 7. Nf3 {[%emt 0:00:00]} g6 {[%emt 0:00:00]} 8. Qc2 {[%emt 0:00:00]} Nh5 {[%emt 0:08:09]} 9. O-O {[%emt 0:12:59]} Nf4 {[%emt 0:02:12]} 10. Bb5 {[%emt 0:10:15] c4 would now be deadly. White has an edge.} a6 {[%emt 0:05:42]} 11. Bxc6+ {[%emt 0:06:41]} bxc6 {[%emt 0:00:00]} 12. Ne5 {[%emt 0:01:58]} Ne6 {[%emt 0:00:53]} (12... Bf5 {is more complex.} 13. Qd1 Ne6 14. g4 Be4) 13. f4 {[%emt 0:18:10]} f6 {[%emt 0:03:32]} 14. Nd3 {[%emt 0:02:22]} c5 {[%emt 0:06:04]} 15. dxc5 {[%emt 0:02:16]} Nxc5 {[%emt 0:00:00]} 16. Be3 {[%emt 0:00:57]} Bf5 $1 {[%emt 0:02:29]} 17. Bxc5 {[%emt 0:01:44]} Qxc5+ {[%emt 0:00:26]} 18. Nxc5 {[%emt 0:00:00]} Bxc2 {[%emt 0:00:00]} 19. Ne6 {[%emt 0:02:11]} Kf7 {[%emt 0:02:09]} 20. Nxf8 {[%emt 0:06:42]} Rhxf8 {[%emt 0:00:00]} 21. Rf2 {[%emt 0:01:04]} Bf5 {[%emt 0:00:13]} 22. Nd2 {[%emt 0:03:11]} Rfc8 {[%emt 0:01:23]} 23. Rd1 {[%emt 0:05:04]} a5 {[%emt 0:05:24]} 24. Nf1 {[%emt 0:01:10]} Rc5 {[%emt 0:04:31]} 25. Rfd2 {[%emt 0:07:16]} Rd8 {[%emt 0:08:26]} 26. Ne3 {[%emt 0:04:24]} Be4 {[%emt 0:00:00]} 27. c4 {[%emt 0:06:25][%cal Rc4d5]} e6 {[%emt 0:00:00]} 28. cxd5 {[%emt 0:00:39]} exd5 {[%emt 0:00:00]} 29. Rd4 {[%emt 0:00:25]} f5 {[%emt 0:00:00]} 30. R1d2 {[%emt 0:00:26]} Ke6 {[%emt 0:00:24]} 31. Nd1 {[%emt 0:02:11]} Rg8 {[%emt 0:02:07]} 32. h4 {[%emt 0:00:38]} h6 {[%emt 0:00:00]} 33. Nc3 {[%emt 0:00:00][%cal Og2g4]} g5 {[%emt 0:00:00]} 34. hxg5 {[%emt 0:00:03]} hxg5 {[%emt 0:00:00]} 35. fxg5 {[%emt 0:00:13]} Rxg5 {[%emt 0:00:00]} 36. Nxe4 $2 {[%emt 0:00:00] Now White is beyond hope.} (36. Ra4 $17 {was called for.}) 36... fxe4 $15 {[%emt 0:00:00][%mdl 4096] Endgame. KRR-KRR} ({Less strong is} 36... dxe4 37. Ra4 $15) 37. Kf2 {[%emt 0:00:00]} Rf5+ {[%emt 0:01:10]} 38. Ke3 {[%emt 0:00:00]} Rc1 {[%emt 0:00:07] Hoping for ...Re1+.} 39. Re2 $2 {[%emt 0:00:01]} (39. Ra4 {only move.}) 39... Rff1 {[%emt 0:01:41] [#] White must now prevent ...Ke5.} 40. Rdd2 $2 {[%emt 0:00:02]} (40. Ra4 Rf5 41. Ra3) 40... Ke5 $19 {[%emt 0:00:16]} 41. Rd4 {[%emt 0:02:55]} Rfe1 {[%emt 0:01:57]} 42. Ra4 {[%emt 0:02:01] [#]} d4+ $1 {[%emt 0:00:42][%mdl 512]} 43. Kf2 {[%emt 0:00:14]} e3+ {[%emt 0:00:18]} 44. Kf3 {[%emt 0:00:08]} Rf1+ {[%emt 0:00:42]} 45. Kg3 {[%emt 0:00:06]} Ke4 {[%emt 0:00:07] ( -> ...Rc8)} 46. Ra3 {[%emt 0:00:20]} Rc8 {[%emt 0:00:10] Black mates.} 47. Kh2 {[%emt 0:00:43]} Rh8+ {[%emt 0:00:05]} 48. Kg3 {[%emt 0:00:03]} Rfh1 {[%emt 0:00:11] Weighted Error Value: White=0.75/Black=0.09 (flawless) .  Loses game:     	White=1     	---        Mistake:       	White=2     	---        Inaccurate:     	White=4     	Black=2      OK:         	White=11    	Black=14     Best:        	White=1     	Black=1      Strong:       	---       	Black=1} 0-1

[Event "Fagernes GM Open Autumn 2024"]
[Site "Fagernes"]
[Date "2024.10.07"]
[Round "2.13"]
[White "Skotheim, Andreas"]
[Black "Amar, Elham"]
[Result "1/2-1/2"]
[ECO "E44"]
[WhiteElo "2234"]
[BlackElo "2540"]
[Annotator "TA"]
[PlyCount "48"]
[EventDate "2024.10.03"]
[EventType "swiss"]
[EventCountry "NOR"]
[SourceTitle "playchess.com"]
[Source "ChessBase"]
[SourceQuality "1"]
[TimeControl "40/6000:2400+30"]

{[%evp 13,48,10,16,10,16,-2,8,-2,10,4,27,21,142,158,166,170,226,156,156,102,112,95,106,121,98,102,94,107,107,105,111,93,122,97,85,0,127]} 1. d4 {[%emt 0:00:00]} Nf6 {[%emt 0:19:52][%cal Bg8f6,Bf6e4,Be4d2][%mdl 32]} 2. c4 {[%emt 0:00:00]} e6 {[%emt 0:00:00]} 3. Nc3 {[%emt 0:00:00]} Bb4 {[%emt 0:00:00]} 4. e3 {[%emt 0:00:00]} b6 {[%emt 0:00:00]} 5. Nge2 {[%emt 0:00:00]} Ne4 {[%emt 0:00:00]} 6. Bd2 {[%emt 0:07:26]} Nxd2 {[%emt 0:00:00]} 7. Qxd2 {[%emt 0:00:00]} Bb7 {[%emt 0:00:00]} 8. a3 {[%emt 0:00:25]} Be7 {[%emt 0:00:00]} 9. e4 {[%emt 0:04:12]} O-O {[%emt 0:00:00]} 10. Ng3 {[%emt 0:02:31]} d5 {[%emt 0:22:48]} 11. cxd5 {[%emt 0:12:02]} exd5 {[%emt 0:00:00]} 12. Nxd5 {[%emt 0:01:32]} Bg5 {[%emt 0:09:51]} (12... Bxd5 $11 13. exd5 Qxd5) 13. f4 $16 {[%emt 0:11:32] Weiß steht aktiver.} Bh4 {[%emt 0:04:13] [#]} 14. Nc3 {[%emt 0:09:17]} Nc6 {[%emt 0:04:26]} (14... a6 $142 15. Be2 f5) 15. Rd1 {[%emt 0:02:34]} Qd6 {[%emt 0:04:56]} 16. Be2 {[%emt 0:08:09]} ({Vorzuziehen ist} 16. Bb5) 16... Rad8 {[%emt 0:02:38]} 17. d5 {[%emt 0:01:11]} Ne7 {[%emt 0:00:00]} 18. Qe3 {[%emt 0:06:39]} c6 {[%emt 0:06:08]} 19. dxc6 {[%emt 0:03:08]} Qxc6 {[%emt 0:00:00]} 20. O-O {[%emt 0:00:28]} g6 {[%emt 0:02:34]} 21. Bf3 {[%emt 0:05:06]} Qe6 {[%emt 0:04:06]} 22. e5 {[%emt 0:08:25]} Ba6 {[%emt 0:00:59]} 23. Be2 {[%emt 0:00:26]} Bb7 {[%emt 0:00:00]} 24. Bf3 {[%emt 0:00:27]} Ba6 $1 {[%emt 0:00:00] Gewichteter Fehlerwert: Weiß=0.20 (präzise) /Schwarz=0.17 (sehr präzise) .  Fehler:       	Weiß=1     	Schwarz=2     Ungenau:       	Weiß=1     	Schwarz=1     OK:         	Weiß=6     	Schwarz=6     Bester:       	Weiß=1     	---        Stark:        	---       	Schwarz=1} 1/2-1/2

[Event "Fagernes GM Open Autumn 2024"]
[Site "Fagernes"]
[Date "2024.10.07"]
[Round "2.14"]
[White "Krishnan, Ritvik"]
[Black "Blomqvist, Erik"]
[Result "1-0"]
[ECO "E42"]
[WhiteElo "2206"]
[BlackElo "2483"]
[Annotator "RC"]
[PlyCount "99"]
[EventDate "2024.10.03"]
[EventType "swiss"]
[EventCountry "NOR"]
[SourceTitle "playchess.com"]
[Source "ChessBase"]
[SourceQuality "1"]
[TimeControl "40/6000:2400+30"]

1. d4 {[%emt 0:00:32]} Nf6 {[%emt 0:00:00]} 2. c4 {[%emt 0:00:00]} e6 {[%emt 0:00:00]} 3. Nc3 {[%emt 0:00:00]} Bb4 {[%emt 0:00:00]} 4. e3 {[%emt 0:00:00]} c5 {[%emt 0:00:00]} 5. Nge2 {[%emt 0:00:00]} d5 {[%emt 0:00:00]} 6. a3 {[%emt 0:00:00]} Ba5 {[%emt 0:00:00]} 7. dxc5 {[%emt 0:00:00]} dxc4 {[%emt 0:00:00]} 8. Bd2 {[%emt 0:00:00]} O-O {[%emt 0:00:00]} 9. Ng3 {[%emt 0:00:00]} b6 {[%emt 0:00:00]} 10. Bxc4 {[%emt 0:00:40]} bxc5 {[%emt 0:00:00]} 11. O-O {[%emt 0:05:03]} Bb7 {[%emt 0:00:41]} 12. Qc2 {[%emt 0:03:44]} Nbd7 {[%emt 0:00:09]} 13. Rfd1 {[%emt 0:01:23]} Bc7 {[%emt 0:01:26]} 14. f4 {[%emt 0:11:45]} Qe7 {[%emt 0:15:50]} 15. h3 {[%emt 0:07:56]} Nd5 {[%emt 0:03:54]} 16. Rf1 {[%emt 0:03:58]} Rfd8 {[%emt 0:14:06]} 17. Rae1 {[%emt 0:06:24]} Rac8 {[%emt 0:08:53]} 18. e4 {[%emt 0:02:17]} N5b6 {[%emt 0:03:52]} 19. Ba2 {[%emt 0:01:10]} c4 {[%emt 0:06:49]} 20. e5 {[%emt 0:05:54]} Nc5 {[%emt 0:02:13]} 21. Nce4 {[%emt 0:03:44]} Nxe4 {[%emt 0:13:54]} 22. Nxe4 {[%emt 0:00:00]} Qd7 {[%emt 0:00:40]} 23. Bb1 {[%emt 0:05:09]} Bxe4 {[%emt 0:08:20]} 24. Qxe4 {[%emt 0:00:00]} g6 {[%emt 0:03:27]} 25. Re2 {[%emt 0:05:19]} Na4 {[%emt 0:00:46]} 26. Bc1 {[%emt 0:00:19]} Qb5 {[%emt 0:01:42]} 27. Qf3 {[%emt 0:04:25]} Qb3 {[%emt 0:02:43]} 28. Bc2 {[%emt 0:05:31]} Qxf3 {[%emt 0:00:00]} 29. Rxf3 {[%emt 0:00:00]} Bb6+ {[%emt 0:01:14]} 30. Kf1 {[%emt 0:00:00]} Nc5 {[%emt 0:00:00]} 31. Be3 {[%emt 0:01:01]} Rd5 {[%emt 0:03:33]} 32. Rd2 {[%emt 0:02:28]} Rcd8 {[%emt 0:01:26]} 33. Ke2 {[%emt 0:03:30]} Nd7 {[%emt 0:02:14]} 34. Be4 {[%emt 0:02:34]} Bxe3 {[%emt 0:00:11]} 35. Rxe3 {[%emt 0:00:00]} Rxd2+ {[%emt 0:00:44]} 36. Kxd2 {[%emt 0:00:00]} Nc5+ {[%emt 0:00:38]} 37. Kc3 {[%emt 0:00:00]} Na4+ {[%emt 0:00:01]} 38. Kxc4 {[%emt 0:00:06]} Nxb2+ {[%emt 0:00:00]} 39. Kb5 {[%emt 0:02:11]} Rd4 {[%emt 0:00:00]} 40. Bc2 {[%emt 0:07:29]} Nc4 {[%emt 0:00:00]} 41. Rc3 {[%emt 0:06:26]} Nb6 {[%emt 0:06:53]} 42. g3 {[%emt 0:05:49]} Rd7 {[%emt 0:04:53]} 43. Kc6 {[%emt 0:05:29]} Re7 {[%emt 0:06:51]} 44. Bb3 {[%emt 0:02:13]} Kf8 {[%emt 0:00:50]} 45. a4 {[%emt 0:01:15]} Ke8 {[%emt 0:02:04]} 46. a5 {[%emt 0:00:46]} Na8 {[%emt 0:04:00]} 47. Ba4 {[%emt 0:01:27]} Kd8 {[%emt 0:02:59]} 48. Rb3 {[%emt 0:01:29]} Kc8 {[%emt 0:03:21]} 49. Kd6 {[%emt 0:00:20]} Rc7 {[%emt 0:00:41]} 50. Bc6 {[%emt 0:00:12]} 1-0

[Event "Fagernes GM Open Autumn 2024"]
[Site "Fagernes"]
[Date "2024.10.07"]
[Round "2.15"]
[White "Mannion, Stephen R"]
[Black "Das, Sayantan"]
[Result "0-1"]
[ECO "B12"]
[WhiteElo "2142"]
[BlackElo "2471"]
[Annotator "TA"]
[PlyCount "104"]
[EventDate "2024.10.03"]
[EventType "swiss"]
[EventCountry "NOR"]
[SourceTitle "playchess.com"]
[Source "ChessBase"]
[SourceQuality "1"]
[TimeControl "40/6000:2400+30"]

{[%evp 19,104,-15,-2,-19,-19,-7,-8,-11,-15,-3,-12,-14,-32,-22,0,-10,-10,-54,-40,-58,-53,-90,-90,-102,-63,-134,-156,-143,-150,-149,-127,-123,-137,-135,-116,-112,-93,-160,-92,-195,-135,-135,-137,-148,-83,-204,-189,-269,-270,-268,-256,-296,-276,-345,-341,-357,-368,-366,-331,-361,-358,-408,-398,-435,-417,-388,-379,-366,-360,-358,-350,-853,-824,-824,-531,-1008,-974,-1840,-1227,-1163,-626,-942,-2472,-3714,-5202,-4602,-2762]} 1. e4 {[%emt 0:00:11]} c6 {[%emt 0:00:00]} 2. d4 {[%emt 0:00:00]} d5 {[%emt 0:00:00]} 3. e5 {[%emt 0:00:00]} Bf5 {[%emt 0:00:00]} 4. Nf3 {[%emt 0:00:00]} e6 {[%emt 0:00:00]} 5. Be2 {[%emt 0:00:00]} Ne7 {[%emt 0:00:00]} 6. O-O {[%emt 0:00:00]} Ng6 {[%emt 0:00:00] B12: Caro-Kann: Advance Variation.} 7. c3 {[%emt 0:11:25]} Nd7 $1 {[%emt 0:00:00] 7...Nd7 is better than 7...f6.} 8. a4 {[%emt 0:00:00]} f6 {[%emt 0:03:18]} 9. exf6 {[%emt 0:01:03]} Qxf6 {[%emt 0:00:59]} 10. Na3 {[%emt 0:21:05]} Bd6 {[%emt 0:01:44]} 11. Nc2 $146 {[%emt 0:11:44]} ({Predecessor:} 11. Bg5 Qf7 12. Nh4 Nxh4 13. Bxh4 O-O 14. Nc2 e5 15. Bg3 Rae8 16. Ne3 Be4 17. Bh5 {½-½ Pintor,S (2039)-Povshednyi,I (2249) Queima das Fitas op 2024 (5)}) 11... O-O {[%emt 0:18:35]} 12. Ne3 {[%emt 0:05:37]} Nf4 {[%emt 0:11:59]} 13. Nxf5 {[%emt 0:01:04]} Nxe2+ {[%emt 0:01:09]} 14. Qxe2 {[%emt 0:00:00]} Qxf5 {[%emt 0:00:00]} 15. Bd2 {[%emt 0:07:30]} Rae8 {[%emt 0:00:25]} 16. Rae1 {[%emt 0:01:21]} a5 {[%emt 0:13:06]} 17. c4 {[%emt 0:24:52]} e5 {[%emt 0:14:39]} 18. cxd5 {[%emt 0:04:09]} e4 $1 {[%emt 0:01:52]} (18... cxd5 $6 19. dxe5 Nxe5 20. Nxe5 Qxe5 21. Qxe5 Rxe5 22. Bxa5 Rxe1 23. Bxe1 $11) 19. Ng5 {[%emt 0:05:25]} (19. Bxa5 exf3 20. Qxf3 Qxf3 (20... cxd5 $2 21. Qxf5 Rxf5 22. Rxe8+ $18) (20... Qxd5 $2 21. Qxd5+ cxd5 22. Bc3 $19) 21. gxf3 Ra8 (21... cxd5 $2 22. Rc1 $19) 22. dxc6 bxc6 $19) 19... cxd5 {[%emt 0:01:35]} 20. f4 {[%emt 0:00:18]} Nf6 {[%emt 0:01:12]} 21. Bxa5 {[%emt 0:01:55]} Ra8 {[%emt 0:04:12]} (21... Bxf4 $6 22. Nh3 g5 (22... Nh5 23. g4 $16) 23. Bc7 $11) 22. Bc3 {[%emt 0:01:02]} ({White should play} 22. Qb5 $1 $15) 22... h6 $17 {[%emt 0:02:46]} (22... Bxf4 23. Nh3 (23. Bd2 Qxg5 24. Bxf4 Qh5 $18) 23... Nh5 24. Bd2 $18) 23. Nh3 {[%emt 0:00:00]} Rxa4 {[%emt 0:00:00]} 24. Qb5 {[%emt 0:00:00]} Qd7 {[%emt 0:00:28]} 25. Qxd7 {[%emt 0:00:08]} Nxd7 {[%emt 0:00:00]} 26. g3 {[%emt 0:00:03]} Bc7 {[%emt 0:01:36]} 27. Ra1 {[%emt 0:00:21]} Rfa8 {[%emt 0:00:00]} 28. b3 {[%emt 0:00:14] [#]} (28. Rxa4 $142 Rxa4 29. f5) 28... Ra3 {[%emt 0:00:00]} ({Better is} 28... Ra2 $1 29. Rxa2 Rxa2) 29. f5 {[%emt 0:00:00]} (29. Rfb1 $17 {was the only chance.}) 29... R8a6 {[%emt 0:00:56]} ({Black should try} 29... Nf6 $19 30. Nf2 Bb6 31. Rxa3 Rxa3) 30. Rxa3 $17 {[%emt 0:00:00]} Rxa3 {[%emt 0:00:00]} 31. Rb1 {[%emt 0:00:00]} Nb8 {[%emt 0:02:34]} (31... Kf7 $142 {White must now prevent ...Kf6.} 32. Bb4 Ra6) 32. Kf2 {[%emt 0:00:00]} (32. Nf2 $17) 32... Nc6 {[%emt 0:00:41]} 33. Ke3 {[%emt 0:00:00]} (33. Ng1 {might work better.}) 33... Ra2 $19 {[%emt 0:00:00]} 34. Rb2 {[%emt 0:00:00]} Ra1 {[%emt 0:00:00]} 35. Nf2 {[%emt 0:00:00]} Ne7 {[%emt 0:00:15]} 36. g4 {[%emt 0:00:00]} Bxh2 {[%emt 0:00:21]} 37. Bb4 {[%emt 0:00:00]} (37. Nxe4 dxe4 38. Rxh2 Nd5+ 39. Kxe4 Nxc3+ $19) 37... Nc6 {[%emt 0:00:00]} 38. Bc5 {[%emt 0:00:00]} Bg3 {[%emt 0:03:14]} 39. Ke2 {[%emt 0:00:00]} Rg1 {[%emt 0:03:46]} 40. Nd1 {[%emt 0:00:00]} Bf4 {[%emt 0:00:00]} 41. Nf2 {[%emt 0:09:50]} Bc7 {[%emt 0:09:39]} 42. Ra2 {[%emt 0:14:53]} b6 {[%emt 0:03:36]} 43. Ra6 {[%emt 0:02:12]} bxc5 {[%emt 0:03:33]} 44. Rxc6 {[%emt 0:00:04]} Ba5 {[%emt 0:00:06]} 45. Nh3 $2 {[%emt 0:01:29]} (45. Nxe4 Re1+ (45... dxe4 $2 46. dxc5 Kf7 47. Rg6 $19) (45... cxd4 46. Nf2 $15) (45... Rxg4 46. Nxc5 Rxd4 47. Ne6 $15) 46. Kf2 Rxe4 47. dxc5) 45... Re1+ $19 {[%emt 0:01:24]} ({Less strong is} 45... Rxg4 46. Rxc5 Bb6 47. Rxd5 $15) 46. Kf2 {[%emt 0:00:06]} e3+ {[%emt 0:00:45]} 47. Kf3 {[%emt 0:01:12]} cxd4 {[%emt 0:00:22]} 48. g5 {[%emt 0:00:44]} Rf1+ {[%emt 0:05:27]} 49. Ke2 {[%emt 0:02:55]} Rxf5 {[%emt 0:00:14]} 50. gxh6 {[%emt 0:00:12]} Rh5 {[%emt 0:04:05]} 51. Nf4 {[%emt 0:06:47]} Rh2+ {[%emt 0:00:17]} (51... Rxh6 52. Rxh6 gxh6 53. Nxd5) 52. Kd1 {[%emt 0:00:09]} d3 {[%emt 0:01:06]} 0-1